bitfinex/quotes_BTCUSD_20241020
["timestamp","ask_amount","ask_price","bid_price","bid_amount"]
[1729404335145,0.20886097,68171.0,68170.0,0.21536212]
[1729404335426,0.21086097,68171.0,68170.0,0.21536212]
[1729404336729,0.18888766,68171.0,68170.0,0.21536212]
[1729404336888,0.18891596,68171.0,68170.0,0.21536212]
[1729404338393,0.18891643,68171.0,68170.0,0.21536212]
[1729404338851,0.17792996,68171.0,68170.0,0.21536212]
[1729404339074,0.18891699,68171.0,68170.0,0.21536212]
[1729404340036,0.18891699,68171.0,68170.0,0.177327]
[1729404340472,0.18891699,68171.0,68170.0,0.21536434]
[1729404341953,0.1751832,68171.0,68170.0,0.21536434]
[1729404342151,0.18891695,68171.0,68170.0,0.21536434]
[1729404345677,0.1751832,68171.0,68170.0,0.21536434]
[1729404345903,0.18891735,68171.0,68170.0,0.21536434]
[1729404346519,0.18895106,68171.0,68170.0,0.21536434]
[1729404349602,0.17796387,68171.0,68170.0,0.21536434]
[1729404349804,0.16422988,68171.0,68170.0,0.21536434]
[1729404350141,0.18895073,68171.0,68170.0,0.21536434]
[1729404351409,0.18895073,68171.0,68170.0,0.177327]
[1729404351692,0.18895271,68171.0,68170.0,0.21536073]
[1729404353349,0.18895292,68171.0,68170.0,0.21536073]
[1729404354075,0.18895292,68171.0,68170.0,0.22036073]
[1729404356459,0.02672106,68171.0,68170.0,0.22036073]
[1729404356672,0.18895967,68171.0,68170.0,0.22036073]
[1729404356895,0.17522575,68171.0,68170.0,0.22036073]
[1729404357102,0.18895994,68171.0,68170.0,0.22036073]
[1729404360936,0.18895994,68171.0,68170.0,0.21536073]
[1729404361161,0.18895994,68171.0,68170.0,0.22036073]
[1729404362125,0.1779728,68171.0,68170.0,0.22036073]
[1729404362561,0.17797388,68171.0,68170.0,0.22036073]
[1729404362762,0.17797388,68171.0,68170.0,0.21536073]
[1729404362976,0.17797388,68171.0,68170.0,0.22036073]
[1729404364775,0.17797957,68171.0,68170.0,0.22036073]
[1729404366186,0.17597957,68171.0,68170.0,0.22036073]
[1729404369280,0.17797957,68171.0,68170.0,0.22036073]
[1729404369491,0.17797957,68171.0,68170.0,0.21536073]
[1729404369724,0.17797938,68171.0,68170.0,0.22036073]
[1729404370172,0.17597938,68171.0,68170.0,0.22036073]
[1729404370650,0.16224411,68171.0,68170.0,0.182327]
[1729404370957,0.17598073,68171.0,68170.0,0.22036959]
[1729404371205,0.17798072,68171.0,68170.0,0.22036959]
[1729404371960,0.17798072,68171.0,68170.0,0.21536959]
[1729404372177,0.17798072,68171.0,68170.0,0.22036959]
[1729404373467,0.17798072,68171.0,68170.0,0.21536959]
[1729404373688,0.17598072,68171.0,68170.0,0.22036959]
[1729404374328,0.17598091,68171.0,68170.0,0.182327]
[1729404374820,0.17598091,68171.0,68170.0,0.22037233]
[1729404377632,0.17798091,68171.0,68170.0,0.22037233]
[1729404377859,0.16424411,68171.0,68170.0,0.22037233]
[1729404378068,0.1779786,68171.0,68170.0,0.22037233]
[1729404378279,0.1759786,68171.0,68170.0,0.22037233]
[1729404378510,0.1779786,68171.0,68170.0,0.22037233]
[1729404379154,0.3246676,68171.0,68170.0,0.04387233]
[1729404379637,0.3246676,68171.0,68170.0,0.005827]
[1729404381644,0.32466638,68171.0,68170.0,0.005827]
[1729404383838,0.17797738,68171.0,68170.0,0.005827]
[1729404384262,0.17795499,68171.0,68170.0,0.005827]
[1729404386612,0.32464399,68171.0,68170.0,0.005827]
[1729404389378,0.32463441,68171.0,68170.0,0.005827]
[1729404389593,0.17794541,68171.0,68170.0,0.005827]
[1729404393607,0.17794522,68171.0,68170.0,0.005827]
[1729404394255,0.17795003,68171.0,68170.0,0.005827]
[1729404397030,0.16421825,68171.0,68170.0,0.005827]
[1729404397259,0.17795155,68171.0,68170.0,0.005827]
[1729404398925,0.28781695,68171.0,68170.0,0.000827]
[1729404399135,0.28780859,68171.0,68170.0,0.005827]
[1729404400545,0.17794854,68171.0,68170.0,0.005827]
[1729404400948,0.28780859,68171.0,68170.0,0.005827]
[1729404401547,0.17794854,68171.0,68170.0,0.005827]
[1729404404076,0.17794815,68171.0,68170.0,0.005827]
[1729404404503,0.17795057,68171.0,68170.0,0.005827]
[1729404404985,0.17795054,68171.0,68170.0,0.005827]
[1729404405398,0.17795052,68171.0,68170.0,0.005827]
[1729404405782,0.17595052,68171.0,68170.0,0.005827]
[1729404405979,0.17595052,68171.0,68170.0,0.177227]
[1729404406455,0.17595052,68171.0,68170.0,0.21539539]
[1729404407169,0.26383737,68171.0,68170.0,0.21539539]
[1729404408473,0.26383192,68171.0,68170.0,0.21539539]
[1729404409136,0.26383231,68171.0,68170.0,0.21539539]
[1729404411620,0.01373567,68171.0,68170.0,0.21539539]
[1729404412050,0.07965106,68171.0,68170.0,0.21539539]
[1729404412973,0.05767944,68171.0,68170.0,0.21539539]
[1729404413209,0.04394377,68175.0,68174.0,0.1754]
[1729404413424,0.06591539,68177.0,68175.0,0.1754]
[1729404413425,0.04394377,68177.0,68175.0,0.1754]
[1729404413663,0.04394377,68177.0,68176.0,0.005]
[1729404413874,0.28778165,68179.0,68178.0,0.005]
[1729404414108,0.30151324,68179.0,68178.0,0.0974]
[1729404414313,0.01538559,68179.0,68178.0,0.1754]
[1729404414521,0.01538559,68179.0,68178.0,0.21356839]
[1729404414522,0.05931137,68179.0,68178.0,0.21356839]
[1729404415349,0.01538559,68179.0,68178.0,0.21356839]
[1729404415555,0.01537669,68179.0,68178.0,0.21356839]
[1729404415973,0.0153767,68179.0,68178.0,0.21356839]
[1729404416454,0.001654,68179.0,68178.0,0.21356839]
[1729404420880,0.001654,68179.0,68178.0,0.23499992]
[1729404421883,0.001654,68179.0,68178.0,0.21356839]
[1729404424122,0.001654,68179.0,68178.0,0.36252754]
[1729404427238,0.001654,68179.0,68178.0,0.36752754]
[1729404427499,0.001654,68179.0,68178.0,0.37752754]
[1729404428628,0.001654,68179.0,68178.0,0.40052754]
[1729404434379,0.001654,68179.0,68178.0,0.40135454]
[1729404445251,0.22022551,68192.0,68188.0,0.02]
[1729404445469,0.22022551,68192.0,68188.0,0.36345915]
[1729404445887,0.097054,68210.0,68188.0,0.40137643]
[1729404445888,0.002,68209.0,68188.0,0.40137643]
[1729404446954,0.002,68208.0,68188.0,0.40137643]
[1729404447164,0.0954,68207.0,68188.0,0.40137643]
[1729404447608,0.001554,68189.0,68188.0,0.40137643]
[1729404447811,0.00131067,68189.0,68188.0,0.40137643]
[1729404448031,0.00131067,68189.0,68188.0,0.42320342]
[1729404459948,0.00131067,68189.0,68188.0,0.42403042]
[1729404463954,0.00131067,68189.0,68188.0,0.46971905]
[1729404476480,0.00131067,68189.0,68188.0,0.51358433]
[1729404479295,0.00131067,68189.0,68188.0,0.51361185]
[1729404481391,0.00131067,68189.0,68188.0,0.46971905]
[1729404482444,0.00131067,68189.0,68188.0,0.53557021]
[1729404485378,0.00131067,68189.0,68188.0,0.46971905]
[1729404487437,0.00131067,68189.0,68188.0,0.5575206]
[1729404489384,0.00131067,68189.0,68188.0,0.46971905]
[1729404490416,0.00131067,68189.0,68188.0,0.57947099]
[1729404491782,0.00131067,68189.0,68188.0,0.46971905]
[1729404492661,0.00131067,68189.0,68188.0,0.57958684]
[1729404495834,0.00131067,68189.0,68188.0,0.46971905]
[1729404527466,0.00131067,68189.0,68188.0,0.49906905]
[1729404527699,0.00131067,68189.0,68188.0,0.46971905]
[1729404546123,0.00131067,68189.0,68188.0,0.29821905]
[1729404583868,0.00131067,68189.0,68188.0,0.47041905]
[1729404585071,0.00131067,68189.0,68188.0,0.60229213]
[1729404585305,0.00131067,68189.0,68188.0,0.47041905]
[1729404585560,0.00131067,68189.0,68188.0,0.60229213]
[1729404586032,0.00131067,68189.0,68188.0,0.47041905]
[1729404586227,0.00131067,68189.0,68188.0,0.60228243]
[1729404586721,0.00131067,68189.0,68188.0,0.47041905]
[1729404586992,0.00131067,68189.0,68188.0,0.60227238]
[1729404587235,0.00131067,68189.0,68188.0,0.60227171]
[1729404587951,0.00131067,68189.0,68188.0,0.60226937]
[1729404589109,0.00131067,68189.0,68188.0,0.60226735]
[1729404597752,0.00131067,68189.0,68188.0,0.47041905]
[1729404597989,0.00131067,68189.0,68188.0,0.60226735]
[1729404599940,0.00131067,68189.0,68188.0,0.60445111]
[1729404600190,0.00131067,68189.0,68188.0,0.61287413]
[1729404601144,0.00131067,68189.0,68188.0,0.61286242]
[1729404601887,0.00131067,68189.0,68188.0,0.61067866]
[1729404602120,0.00131067,68189.0,68188.0,0.60225564]
[1729404605661,0.00131067,68189.0,68188.0,0.60224362]
[1729404606746,0.00131067,68189.0,68188.0,0.43004362]
[1729404607181,0.00131067,68189.0,68188.0,0.29821905]
[1729404625870,0.00131067,68189.0,68188.0,0.26030177]
[1729404626130,0.00131067,68189.0,68188.0,0.29902436]
[1729404651323,0.00131067,68189.0,68188.0,0.43088315]
[1729404653792,0.00131067,68189.0,68188.0,0.29902436]
[1729404653998,0.00131067,68189.0,68188.0,0.43089828]
[1729404654200,0.00131067,68189.0,68188.0,0.29902436]
[1729404654408,0.00131067,68189.0,68188.0,0.43089828]
[1729404654665,0.00131067,68189.0,68188.0,0.29902436]
[1729404655907,0.00131067,68189.0,68188.0,0.43089828]
[1729404656131,0.00131067,68189.0,68188.0,0.29902436]
[1729404656841,0.00131067,68189.0,68188.0,0.43089828]
[1729404667534,0.00131067,68189.0,68188.0,0.29902436]
[1729404668895,0.00131067,68189.0,68188.0,0.43090324]
[1729404669111,0.00131067,68189.0,68188.0,0.29902436]
[1729404742159,0.00131067,68189.0,68188.0,0.28902436]
[1729404742371,0.00131067,68189.0,68188.0,0.29902436]
[1729404743640,0.00131067,68189.0,68188.0,0.28902436]
[1729404743851,0.00131067,68189.0,68188.0,0.29902436]
[1729404746423,0.00131067,68189.0,68188.0,0.28902436]
[1729404746659,0.00131067,68189.0,68188.0,0.29902436]
[1729404751255,0.00131067,68189.0,68188.0,0.28902436]
[1729404751461,0.00131067,68189.0,68188.0,0.29902436]
[1729404753700,0.00131067,68189.0,68188.0,0.29402436]
[1729404755649,0.00131067,68189.0,68188.0,0.28902436]
[1729404763630,0.00131067,68189.0,68188.0,0.26602436]
[1729404764573,0.00131067,68189.0,68188.0,0.39791795]
[1729404764989,0.00131067,68189.0,68188.0,0.26602436]
[1729404772954,0.00131067,68189.0,68188.0,0.26102436]
[1729404773209,0.00131067,68189.0,68188.0,0.26602436]
[1729404796727,0.00131067,68189.0,68188.0,0.45552436]
[1729404796930,0.00131067,68189.0,68188.0,0.58736043]
[1729404799063,0.00131067,68189.0,68188.0,0.45552436]
[1729404799473,0.00131067,68189.0,68188.0,0.58736043]
[1729404799687,0.00131067,68189.0,68188.0,0.58734825]
[1729404806155,0.00131067,68189.0,68188.0,0.54862566]
[1729404806387,0.00131067,68189.0,68188.0,0.57959799]
[1729404806606,0.00131067,68189.0,68188.0,0.4477741]
[1729404807225,0.00131067,68189.0,68188.0,0.57959799]
[1729404807730,0.00131067,68189.0,68188.0,0.4477741]
[1729404808161,0.00131067,68189.0,68188.0,0.57959799]
[1729404810341,0.00131067,68189.0,68188.0,0.4477741]
[1729404820637,0.00131067,68189.0,68188.0,0.57959799]
[1729404820870,0.00131067,68189.0,68188.0,0.4477741]
[1729404821914,0.00131067,68189.0,68188.0,0.57959799]
[1729404823860,0.00131067,68189.0,68188.0,0.57956473]
[1729404825129,0.00131067,68189.0,68188.0,0.4477741]
[1729404825334,0.00131067,68189.0,68188.0,0.57956473]
[1729404826911,0.00131067,68189.0,68188.0,0.4477741]
[1729404827350,0.00131067,68189.0,68188.0,0.57956473]
[1729404833927,0.00131067,68189.0,68188.0,0.57958537]
[1729404838546,0.00131067,68189.0,68188.0,0.60894364]
[1729404838772,0.00131067,68189.0,68188.0,0.57961364]
[1729404839204,0.00131067,68189.0,68188.0,0.4477741]
[1729404855702,0.00131067,68189.0,68188.0,0.3563741]
[1729404857070,0.00131067,68189.0,68188.0,0.2812741]
[1729404869188,0.00131067,68189.0,68188.0,0.4560741]
[1729404882903,0.00131067,68189.0,68188.0,0.45920804]
[1729404883136,0.00131067,68189.0,68188.0,0.4560741]
[1729404915284,0.05369226,68197.0,68196.0,0.005]
[1729404915555,0.05369226,68197.0,68196.0,0.15395915]
[1729404916029,0.05369226,68197.0,68196.0,0.18484297]
[1729404917683,0.05369226,68197.0,68196.0,0.20628756]
[1729404917943,0.001654,68199.0,68198.0,0.005]
[1729404918154,0.001654,68199.0,68198.0,0.15395915]
[1729404918599,0.001654,68199.0,68198.0,0.18484297]
[1729404925390,0.001654,68199.0,68198.0,0.27273034]
[1729404926159,0.001654,68199.0,68198.0,0.18484297]
[1729404929743,0.003654,68199.0,68198.0,0.18484297]
[1729404930272,0.001654,68199.0,68198.0,0.27273034]
[1729404930774,0.001654,68199.0,68198.0,0.18484297]
[1729404930975,0.001654,68199.0,68198.0,0.27273034]
[1729404932225,0.001654,68199.0,68198.0,0.27272911]
[1729404933951,0.001654,68199.0,68198.0,0.18484297]
[1729404934205,0.001654,68199.0,68198.0,0.27272911]
[1729404934431,0.001654,68199.0,68198.0,0.18484297]
[1729404934902,0.001654,68199.0,68198.0,0.27272911]
[1729404935865,0.001654,68199.0,68198.0,0.18484297]
[1729404936098,0.001654,68199.0,68198.0,0.27272911]
[1729404936570,0.1787,68207.0,68199.0,0.005]
[1729404936820,0.1787,68207.0,68201.0,0.0439426]
[1729404937066,0.1787,68207.0,68202.0,0.14895915]
[1729404937306,0.1787,68207.0,68202.0,0.17985479]
[1729404938634,0.1767,68207.0,68202.0,0.17985479]
[1729404939087,0.1787,68207.0,68202.0,0.17985479]
[1729404939521,0.1787,68207.0,68203.0,0.0439426]
[1729404939739,0.1787,68207.0,68203.0,0.03089269]
[1729404941722,0.1767,68207.0,68203.0,0.03089269]
[1729404945520,0.002,68205.0,68203.0,0.05200166]
[1729404949013,0.1787,68207.0,68203.0,0.05200166]
[1729404949284,0.002,68209.0,68203.0,0.20096081]
[1729404949515,0.002,68208.0,68204.0,0.14895915]
[1729404950017,0.002,68208.0,68204.0,0.17985383]
[1729404951657,0.002,68207.0,68204.0,0.17985383]
[1729404957809,0.31282551,68211.0,68204.0,0.17985383]
[1729404958014,0.002,68207.0,68204.0,0.17985383]
[1729404960743,0.31282551,68211.0,68204.0,0.17985383]
[1729404960995,0.002,68206.0,68204.0,0.17985383]
[1729404962114,0.002,68205.0,68204.0,0.17985383]
[1729404963225,0.002,68207.0,68204.0,0.17985383]
[1729404964895,0.002,68205.0,68204.0,0.17985383]
[1729404971399,0.002,68206.0,68204.0,0.17985383]
[1729404971662,0.002,68205.0,68204.0,0.17985383]
[1729404972794,0.002,68206.0,68204.0,0.17985383]
[1729404972984,0.002,68207.0,68204.0,0.17985383]
[1729404978804,0.003654,68207.0,68204.0,0.17985383]
[1729404981432,0.001654,68207.0,68204.0,0.17985383]
[1729404982487,0.003654,68207.0,68204.0,0.17985383]
[1729404984621,0.002,68205.0,68204.0,0.17985383]
[1729404986405,0.003654,68207.0,68204.0,0.17985383]
[1729404988201,0.002,68205.0,68204.0,0.17985383]
[1729404988660,0.003654,68207.0,68204.0,0.17985383]
[1729404990169,0.002,68205.0,68204.0,0.17985383]
[1729404993022,0.003654,68207.0,68204.0,0.17985383]
[1729404994124,0.001654,68207.0,68204.0,0.17985383]
[1729404995794,0.002,68205.0,68204.0,0.17985383]
[1729404996852,0.001654,68207.0,68204.0,0.17985383]
[1729404997465,0.003654,68207.0,68204.0,0.17985383]
[1729404998115,0.001654,68207.0,68204.0,0.17985383]
[1729404999151,0.002,68205.0,68204.0,0.17985383]
[1729405001050,0.002,68206.0,68204.0,0.17985383]
[1729405001476,0.002,68206.0,68204.0,0.22379123]
[1729405001984,0.002,68206.0,68204.0,0.17985383]
[1729405004163,0.001654,68205.0,68204.0,0.17985383]
[1729405006476,0.001654,68205.0,68204.0,0.22379123]
[1729405007293,0.001654,68205.0,68204.0,0.17985383]
[1729405011247,0.003654,68205.0,68204.0,0.17985383]
[1729405011458,0.003654,68205.0,68204.0,0.03089468]
[1729405031077,0.001654,68205.0,68204.0,0.03089468]
[1729405044785,0.001654,68205.0,68204.0,0.07482762]
[1729405045023,0.001654,68205.0,68204.0,0.03089468]
[1729405046568,0.001654,68205.0,68204.0,0.07482747]
[1729405047044,0.001654,68205.0,68204.0,0.03089468]
[1729405047768,0.001654,68205.0,68204.0,0.07482747]
[1729405047987,0.001654,68205.0,68204.0,0.03089468]
[1729405048653,0.001654,68205.0,68204.0,0.07482747]
[1729405048894,0.001654,68205.0,68204.0,0.07482577]
[1729405049720,0.001654,68205.0,68204.0,0.03089468]
[1729405050361,0.001654,68205.0,68204.0,0.07482577]
[1729405050822,0.001654,68205.0,68204.0,0.03089468]
[1729405051666,0.001654,68205.0,68204.0,0.07482577]
[1729405052103,0.001654,68205.0,68204.0,0.03089468]
[1729405053388,0.001654,68205.0,68204.0,0.07482577]
[1729405053824,0.001654,68205.0,68204.0,0.07482595]
[1729405054035,0.001654,68205.0,68204.0,0.03089468]
[1729405054900,0.001654,68205.0,68204.0,0.07482595]
[1729405055362,0.001654,68205.0,68204.0,0.03089468]
[1729405057731,0.001654,68205.0,68204.0,0.07482595]
[1729405058790,0.001654,68205.0,68204.0,0.03089468]
[1729405072659,0.001654,68205.0,68204.0,0.07482595]
[1729405072865,0.001654,68205.0,68204.0,0.03089468]
[1729405073074,0.001654,68205.0,68204.0,0.07482851]
[1729405073310,0.001654,68205.0,68204.0,0.03089468]
[1729405075955,0.001654,68205.0,68204.0,0.07482851]
[1729405077754,0.001654,68205.0,68204.0,0.07483372]
[1729405079964,0.003654,68205.0,68204.0,0.03089468]
[1729405082361,0.001654,68205.0,68204.0,0.03089468]
[1729405082817,0.003654,68205.0,68204.0,0.03089468]
[1729405095713,0.001654,68205.0,68204.0,0.03089468]
[1729405096981,0.003654,68205.0,68204.0,0.03089468]
[1729405107439,0.001654,68205.0,68204.0,0.03089468]
[1729405108532,0.003654,68205.0,68204.0,0.03089468]
[1729405114425,0.001654,68205.0,68204.0,0.03089468]
[1729405116261,0.001654,68205.0,68204.0,0.07485055]
[1729405116733,0.001654,68205.0,68204.0,0.03089468]
[1729405117189,0.001654,68205.0,68204.0,0.07485055]
[1729405117968,0.001654,68205.0,68204.0,0.03089468]
[1729405118427,0.001654,68205.0,68204.0,0.07485055]
[1729405119109,0.001654,68205.0,68204.0,0.03089468]
[1729405119377,0.001654,68205.0,68204.0,0.07485055]
[1729405119607,0.001654,68205.0,68204.0,0.07484832]
[1729405120770,0.001654,68205.0,68204.0,0.03089468]
[1729405120984,0.001654,68205.0,68204.0,0.07484832]
[1729405129924,0.001654,68205.0,68204.0,0.07483773]
[1729405130549,0.001654,68205.0,68204.0,0.03088409]
[1729405130748,0.001654,68205.0,68204.0,0.0748438]
[1729405135346,0.001654,68205.0,68204.0,0.03088409]
[1729405135785,0.001654,68205.0,68204.0,0.0748438]
[1729405136933,0.001654,68205.0,68204.0,0.03088409]
[1729405137161,0.001654,68205.0,68204.0,0.0748438]
[1729405138723,0.001654,68205.0,68204.0,0.07484313]
[1729405139195,0.003654,68205.0,68204.0,0.07484313]
[1729405139818,0.001654,68205.0,68204.0,0.07484313]
[1729405140025,0.001654,68205.0,68204.0,0.03088409]
[1729405140677,0.001654,68205.0,68204.0,0.07484313]
[1729405140882,0.001654,68205.0,68204.0,0.03088409]
[1729405141968,0.001654,68205.0,68204.0,0.07484313]
[1729405142188,0.001654,68205.0,68204.0,0.07484571]
[1729405144914,0.001654,68205.0,68204.0,0.03088409]
[1729405145451,0.001654,68205.0,68204.0,0.07484511]
[1729405146814,0.003654,68205.0,68204.0,0.07484511]
[1729405148568,0.001654,68205.0,68204.0,0.07484511]
[1729405151148,0.003654,68205.0,68204.0,0.07484511]
[1729405151798,0.001654,68205.0,68204.0,0.07484511]
[1729405152003,0.003654,68205.0,68204.0,0.07484511]
[1729405155573,0.001654,68205.0,68204.0,0.07484511]
[1729405163635,0.003654,68205.0,68204.0,0.07484511]
[1729405163818,0.001654,68205.0,68204.0,0.07484511]
[1729405165746,0.003654,68205.0,68204.0,0.07484511]
[1729405167714,0.001654,68205.0,68204.0,0.07484511]
[1729405170027,0.001654,68205.0,68204.0,0.07484277]
[1729405170261,0.001654,68205.0,68204.0,0.03088409]
[1729405172905,0.001654,68205.0,68204.0,0.07484214]
[1729405173971,0.001654,68205.0,68204.0,0.03088409]
[1729405176341,0.001654,68205.0,68204.0,0.07484047]
[1729405176543,0.001654,68205.0,68204.0,0.03088409]
[1729405181217,0.001654,68205.0,68204.0,0.07483864]
[1729405181457,0.001654,68205.0,68204.0,0.12308409]
[1729405187010,0.001654,68205.0,68204.0,0.16703717]
[1729405187463,0.001654,68205.0,68204.0,0.12308409]
[1729405190225,0.001654,68205.0,68204.0,0.16703857]
[1729405190644,0.001654,68205.0,68204.0,0.03088409]
[1729405190878,0.001654,68205.0,68204.0,0.07483851]
[1729405191086,0.003654,68205.0,68204.0,0.07483851]
[1729405191308,0.001654,68205.0,68204.0,0.07483851]
[1729405193027,0.001654,68205.0,68204.0,0.03088409]
[1729405195397,0.001654,68205.0,68204.0,0.09681485]
[1729405195627,0.001654,68205.0,68204.0,0.03088409]
[1729405196462,0.001654,68205.0,68204.0,0.09681485]
[1729405199642,0.001654,68205.0,68204.0,0.03088409]
[1729405199847,0.001654,68205.0,68204.0,0.09681485]
[1729405200268,0.001654,68205.0,68204.0,0.03088409]
[1729405201555,0.001654,68205.0,68204.0,0.09681485]
[1729405201990,0.001654,68205.0,68204.0,0.03088409]
[1729405207140,0.001654,68205.0,68204.0,0.12678409]
[1729405207594,0.001654,68205.0,68204.0,0.428474]
[1729405207796,0.001654,68205.0,68204.0,0.36254324]
[1729405208007,0.001654,68205.0,68204.0,0.4724156]
[1729405208640,0.001654,68205.0,68204.0,0.43630251]
[1729405209089,0.001654,68205.0,68204.0,0.56814935]
[1729405209307,0.001654,68205.0,68204.0,0.43630251]
[1729405211515,0.001654,68205.0,68204.0,0.39054324]
[1729405211937,0.001654,68205.0,68204.0,0.4362566]
[1729405212379,0.001654,68205.0,68204.0,0.39054324]
[1729405218166,0.001654,68205.0,68204.0,0.50020907]
[1729405218996,0.001654,68205.0,68204.0,0.50607307]
[1729405219229,0.001654,68205.0,68204.0,0.50605945]
[1729405219444,0.001654,68205.0,68204.0,0.39640724]
[1729405219659,0.001654,68205.0,68204.0,0.50605933]
[1729405221894,0.001654,68205.0,68204.0,0.39640724]
[1729405222307,0.001654,68205.0,68204.0,0.50605052]
[1729405223741,0.001654,68205.0,68204.0,0.39640724]
[1729405223942,0.001654,68205.0,68204.0,0.50605052]
[1729405224177,0.001654,68205.0,68204.0,0.39640724]
[1729405225406,0.001654,68205.0,68204.0,0.50605052]
[1729405225663,0.001654,68205.0,68204.0,0.39640724]
[1729405225870,0.001654,68205.0,68204.0,0.50605052]
[1729405226956,0.001654,68205.0,68204.0,0.50603187]
[1729405227592,0.001654,68205.0,68204.0,0.39640724]
[1729405228513,0.001654,68205.0,68204.0,0.50603187]
[1729405231511,0.001654,68205.0,68204.0,0.50602248]
[1729405236426,0.001654,68205.0,68204.0,0.50602892]
[1729405239361,0.001654,68205.0,68204.0,0.55174249]
[1729405240834,0.001654,68205.0,68204.0,0.44212081]
[1729405253356,0.001654,68205.0,68204.0,0.573688]
[1729405254389,0.001654,68205.0,68204.0,0.44212081]
[1729405255490,0.001654,68205.0,68204.0,0.57393488]
[1729405255744,0.001654,68205.0,68204.0,0.57393601]
[1729405259557,0.001654,68205.0,68204.0,0.49213601]
[1729405260423,0.001654,68205.0,68204.0,0.49213564]
[1729405261489,0.001654,68205.0,68204.0,0.36032081]
[1729405310085,0.001654,68205.0,68204.0,0.32943672]
[1729405310298,0.001654,68205.0,68204.0,0.35986842]
[1729405320811,0.001654,68205.0,68204.0,0.26396842]
[1729405325472,0.001654,68205.0,68204.0,0.35616842]
[1729405338890,0.001654,68205.0,68204.0,0.37744307]
[1729405353804,0.001654,68205.0,68204.0,0.45534307]
[1729405407838,0.0004679,68210.0,68209.0,0.1084]
[1729405408065,0.0004679,68210.0,68209.0,0.41350438]
[1729405408290,0.0004679,68210.0,68209.0,0.43493182]
[1729405408502,0.0004679,68210.0,68209.0,0.62929398]
[1729405408732,0.0004679,68210.0,68209.0,0.43493182]
[1729405409585,0.0004679,68210.0,68209.0,0.62924634]
[1729405410985,0.0004679,68210.0,68209.0,0.43493182]
[1729405411879,0.0004679,68210.0,68209.0,0.46426182]
[1729405412120,0.0004679,68210.0,68209.0,0.43493182]
[1729405418214,0.0004679,68210.0,68209.0,0.44079482]
[1729405421045,0.0004679,68210.0,68209.0,0.43079482]
[1729405421270,0.0004679,68210.0,68209.0,0.44079482]
[1729405422025,0.0004679,68210.0,68209.0,0.44244882]
[1729405422486,0.0004679,68210.0,68209.0,0.43244882]
[1729405422835,0.0004679,68210.0,68209.0,0.44244882]
[1729405424440,0.0004679,68210.0,68209.0,0.45445778]
[1729405426234,0.001654,68213.0,68211.0,0.01]
[1729405426459,0.001654,68213.0,68211.0,0.35404306]
[1729405426691,0.001654,68213.0,68211.0,0.35111165]
[1729405428934,0.001654,68213.0,68211.0,0.44341165]
[1729405429359,0.000618,68217.0,68216.0,0.01]
[1729405429595,0.000618,68217.0,68216.0,0.22767272]
[1729405429805,0.000618,68217.0,68216.0,0.25201165]
[1729405431825,0.006618,68217.0,68216.0,0.25201165]
[1729405432299,0.001618,68217.0,68216.0,0.25201165]
[1729405434117,0.002445,68217.0,68216.0,0.2737106]
[1729405434548,0.002445,68217.0,68216.0,0.3714106]
[1729405442710,0.002445,68217.0,68216.0,0.2737106]
[1729405444087,0.002445,68217.0,68216.0,0.3696106]
[1729405446774,0.002445,68217.0,68216.0,0.3712646]
[1729405447452,0.002445,68217.0,68216.0,0.50266224]
[1729405447684,0.002445,68217.0,68216.0,0.3712646]
[1729405448136,0.002445,68217.0,68216.0,0.50266224]
[1729405448988,0.002445,68217.0,68216.0,0.3712646]
[1729405449424,0.002445,68217.0,68216.0,0.50266224]
[1729405450505,0.002445,68217.0,68216.0,0.3712646]
[1729405457086,0.002445,68217.0,68216.0,0.40694644]
[1729405457310,0.002445,68217.0,68216.0,0.40694643]
[1729405457765,0.002445,68217.0,68216.0,0.2753646]
[1729405461456,0.002445,68217.0,68216.0,0.40696472]
[1729405461664,0.002445,68217.0,68216.0,0.2753646]
[1729405462076,0.002445,68217.0,68216.0,0.40696816]
[1729405462286,0.002445,68217.0,68216.0,0.2753646]
[1729405462500,0.002445,68217.0,68216.0,0.40696701]
[1729405462700,0.002445,68217.0,68216.0,0.2753646]
[1729405475133,0.002445,68217.0,68216.0,0.4070482]
[1729405475350,0.002445,68217.0,68216.0,0.4070487]
[1729405475561,0.002445,68217.0,68216.0,0.40704908]
[1729405475818,0.002445,68217.0,68216.0,0.2753646]
[1729405480842,0.002445,68217.0,68216.0,0.2812276]
[1729405493946,0.002445,68217.0,68216.0,0.41293348]
[1729405496234,0.002445,68217.0,68216.0,0.2812276]
[1729405500326,0.002445,68217.0,68216.0,0.2909311]
[1729405521268,0.002445,68217.0,68216.0,0.3723311]
[1729405525273,0.002445,68217.0,68216.0,0.4690311]
[1729405540626,0.002445,68217.0,68216.0,0.3876311]
[1729405568193,0.002445,68217.0,68216.0,0.4684311]
[1729405572597,0.002445,68217.0,68216.0,0.3876311]
[1729405605909,0.002445,68217.0,68216.0,0.51940441]
[1729405607911,0.002445,68217.0,68216.0,0.4669311]
[1729405608132,0.002445,68217.0,68216.0,0.4571654]
[1729405620005,0.002445,68217.0,68216.0,0.3778654]
[1729405652145,0.002445,68217.0,68216.0,0.50966088]
[1729405653251,0.002445,68217.0,68216.0,0.3778654]
[1729405654222,0.002445,68217.0,68216.0,0.50966088]
[1729405655376,0.002445,68217.0,68216.0,0.50964874]
[1729405661485,0.002445,68217.0,68216.0,0.3778654]
[1729405661715,0.002445,68217.0,68216.0,0.50964286]
[1729405667761,0.002445,68217.0,68216.0,0.3778654]
[1729405668397,0.002445,68217.0,68216.0,0.2811654]
[1729405668812,0.002445,68217.0,68216.0,0.41294286]
[1729405669694,0.002445,68217.0,68216.0,0.2811654]
[1729405687354,0.002445,68217.0,68216.0,0.23545183]
[1729405687758,0.002445,68217.0,68216.0,0.28119387]
[1729405688173,0.002445,68217.0,68216.0,0.23545183]
[1729405688399,0.002445,68217.0,68216.0,0.28119278]
[1729405689451,0.002445,68217.0,68216.0,0.23545183]
[1729405689684,0.002445,68217.0,68216.0,0.28119339]
[1729405695041,0.002445,68217.0,68216.0,0.23545183]
[1729405695716,0.002445,68217.0,68216.0,0.28119505]
[1729405696384,0.002445,68217.0,68216.0,0.23545183]
[1729405705580,0.002445,68217.0,68216.0,0.22958883]
[1729405706429,0.002445,68217.0,68216.0,0.27533891]
[1729405706841,0.002445,68217.0,68216.0,0.22958883]
[1729405709650,0.002445,68217.0,68216.0,0.20658883]
[1729405711752,0.002445,68217.0,68216.0,0.25233668]
[1729405712220,0.002445,68217.0,68216.0,0.20658883]